fUSD/lending_fUSD_20240811
["ID","MTS","AMOUNT","RATE_DAILY","PERIOD"]
[334613039,1723347036660,-532.63578552,0.00014892,2]
[334613040,1723347036670,-559.28857789,0.00014896,2]
[334613041,1723347036680,-240.92593688,0.00014899,2]
[334613042,1723347036689,-1000.0,0.000149,2]
[334613043,1723347036699,-155.1306407,0.00014988,2]
[334613044,1723347036708,-155.58085965,0.00014999,2]
[334613045,1723347036718,-1005.62,0.00015,2]
[334613046,1723347036727,-197.260951,0.00015045,2]
[334613047,1723347036737,-240.327645,0.00015045,2]
[334613048,1723347036746,-300.0,0.00015068,2]
[334613049,1723347036756,-197.260951,0.00015231,2]
[334613050,1723347036765,-240.327645,0.00015231,2]
[334613051,1723347036774,-749.37644773,0.00015368,2]
[334613052,1723347036783,-624.33214489,0.00015369,2]
[334613053,1723347036793,-313.69504062,0.00015369,2]
[334613054,1723347036802,-324.19791971,0.00015369,2]
[334613055,1723347036812,-213.89147105,0.00015369,2]
[334613056,1723347036823,-165.49338695,0.00015369,2]
[334613057,1723347036834,-197.260951,0.00015417,2]
[334613058,1723347036844,-240.327645,0.00015417,2]
[334613059,1723347036854,-197.260951,0.00015602,2]
[334613060,1723347036866,-240.327645,0.00015602,2]
[334613061,1723347036875,-200.143433,0.00015602,2]
[334613062,1723347036886,-18524.7766547,0.0001566,3]
[334613063,1723347036896,-470.1583,0.0001567,2]
[334613064,1723347036909,-1000.0,0.0001567,2]
[334613065,1723347036918,-5270.2757,0.0001567,2]
[334613066,1723347036928,-3301.9309,0.0001567,2]
[334613067,1723347036938,-326.81458485,0.0001577,2]
[334613068,1723347036947,-150.0,0.00015776,2]
[334613069,1723347036956,-150.0,0.00015784,2]
[334613070,1723347036966,-1500.0,0.00015789,2]
[334613071,1723347036976,-800.0,0.000158,5]
[334613072,1723347036986,-176.23,0.00015802,2]
[334613073,1723347036995,-167.0,0.00015831,2]
[334613074,1723347037004,-167.0,0.00015831,2]
[334613075,1723347037014,-167.0,0.00015831,2]
[334613076,1723347037023,-167.0,0.00015831,2]
[334613077,1723347037032,-18524.7766547,0.0001585,3]
[334613078,1723347037042,-347.66347305,0.0001587,2]
[334613079,1723347037052,-197.12017333,0.0001587,2]
[334613080,1723347037061,-367.83900343,0.0001587,2]
[334613081,1723347037071,-1500.0,0.00015876,2]
[334613082,1723347037080,-476.8972795,0.00015897,2]
[334613083,1723347037090,-476.8972795,0.00015897,2]
[334613084,1723347037100,-155.0,0.00015897,2]
[334613085,1723347037110,-522.20957048,0.00015897,2]
[334613086,1723347037119,-520.07990643,0.00015897,2]
[334613087,1723347037129,-155.0,0.00015897,2]
[334613088,1723347037138,-520.07990643,0.00015897,2]
[334613089,1723347037148,-150.0,0.00015897,2]
[334613090,1723347037160,-1600.0,0.000159,5]
[334613091,1723347037170,-360.0,0.00015904,2]
[334613092,1723347037179,-155.0,0.00015912,2]
[334613093,1723347037189,-150.0,0.00015951,2]
[334613094,1723347037199,-18524.7766547,0.0001596,3]
[334613095,1723347037209,-640.0,0.00015985,2]
[334613096,1723347037218,-150.0,0.00015986,2]
[334613097,1723347037227,-1500.0,0.00015998,2]
[334613098,1723347037237,-357.41882144,0.00015999,2]
[334613099,1723347037246,-164.38725196,0.00015999,2]
[334613100,1723347037256,-3373.655513,0.00016,2]
[334613101,1723347037266,-2516.705938,0.00016,2]
[334613102,1723347037275,-700.0,0.00016,2]
[334613103,1723347037285,-150.0,0.00016008,2]
[334613104,1723347037295,-18524.7766547,0.0001602,3]
[334613105,1723347037304,-155.4270995,0.00016033,2]
[334613106,1723347037314,-454.52988462,0.00016033,2]
[334613107,1723347037323,-211.71844896,0.00016033,2]
[334613108,1723347037333,-454.52988462,0.00016033,2]
[334613109,1723347037347,-211.04152423,0.00016033,2]
[334613110,1723347037357,-150.0,0.00016034,2]
[334613111,1723347037367,-150.0,0.00016036,2]
[334613112,1723347037377,-1471.78859228,0.00016041,2]
[334613113,1723347037387,-1500.0,0.00016056,2]
[334613114,1723347037397,-7500.0,0.00016059,2]
[334613115,1723347037408,-2490.40860829,0.0001606,2]
[334613116,1723347037418,-18524.7766547,0.0001606,3]
[334613117,1723347037429,-1500.0,0.00016061,2]
[334613118,1723347037439,-349.58037399,0.00016066,2]
[334613119,1723347037449,-150.0,0.00016068,2]
[334613120,1723347037459,-2490.40860828,0.0001607,2]
[334613121,1723347037468,-3699.25276169,0.0001607,2]
[334613122,1723347037477,-360.32435835,0.00016071,2]
[334613123,1723347037487,-150.0,0.00016078,2]
[334613124,1723347037496,-2490.40860828,0.00016079,2]
[334613125,1723347037505,-1622.84542398,0.0001608,2]
[334613126,1723347037514,-2605.1936,0.0001608,2]
[334613127,1723347037524,-18524.7766547,0.0001609,3]
[334613128,1723347037533,-150.0,0.0001609,2]
[334613129,1723347037543,-166.31999249,0.00016092,2]
[334613130,1723347037552,-16834.49003795,0.000161,2]
[334613131,1723347037562,-150.0,0.000161,2]
[334613132,1723347037571,-150.0,0.000161,2]
[334613133,1723347037581,-14577.18641462,0.0001612,3]
[334613134,1723347037597,-3947.59024008,0.0001612,3]
[334613135,1723347037606,-150.0,0.00016129,2]
[334613136,1723347037616,-18524.7766547,0.00016131,3]
[334613137,1723347037625,-16723.643935,0.00016131,3]
[334613138,1723347037635,-150.0,0.00016131,2]
[334613139,1723347037644,-18524.7766547,0.0001614,3]
[334613140,1723347037653,-16854.28841452,0.0001614,3]
[334613141,1723347037667,-298.62086198,0.0001614,3]
[334613142,1723347037679,-944.48844133,0.0001614,3]
[334613143,1723347037691,-13394.34796589,0.0001614,3]
[334613144,1723347037702,-1955.54218618,0.0001614,3]
[334613145,1723347037712,-150.0,0.00016149,2]
[334613146,1723347037722,-733.41898325,0.00016158,2]
[334613147,1723347037733,-3160.75730432,0.00016158,2]
[334613148,1723347037743,-203.39382125,0.00016159,2]
[334613149,1723347037752,-285.01907693,0.00016159,2]
[334613150,1723347037761,-4957.06675285,0.0001616,3]
[334613151,1723347037772,-1761.65639133,0.0001616,3]
[334613152,1723347037795,-351.47211199,0.00015369,2]
[334613153,1723347037805,-85905.16012922,0.0001616,3]
[334613154,1723347037814,-83618.2196748,0.0001616,3]
[334613155,1723347037824,-299.26774311,0.00016164,2]
[334613156,1723347037834,-185247.766547,0.0001617,3]
[334613157,1723347037843,-185233.90464922,0.0001617,3]
[334613158,1723347037855,-415.98592689,0.0001617,3]
[334613159,1723347037866,-882.33461522,0.0001617,3]
[334613160,1723347037877,-756.03810701,0.0001617,3]
[334613161,1723347037888,-1182.71091713,0.0001617,3]
[334613162,1723347037900,-1184.24886143,0.0001617,3]
[334613163,1723347037913,-368.7704374,0.0001617,3]
[334613164,1723347037925,-1675.41340693,0.0001617,3]
[334613165,1723347037936,-911.46,0.0001617,3]
[334613166,1723347037948,-5530.51723118,0.0001617,3]
[334613167,1723347037959,-2423.66433081,0.0001617,3]
[334613179,1723347038438,-158.98739992,0.00011322,2]
[334613180,1723347038449,-206.74995029,0.00013199,2]
[334613181,1723347038458,-309.23471205,0.00013789,2]
[334613182,1723347038467,-515.46417487,0.00013789,2]
[334613183,1723347038477,-64.04684069,0.00013789,2]
[334613184,1723347038488,-420.586567,0.00013789,2]
[334613185,1723347038621,-15.36659231,0.00013789,2]
[334613186,1723347038630,-434.51000769,0.00013789,2]
[334613187,1723347038643,-65.48999231,0.00013789,2]
[334613188,1723347038652,-500.0,0.00013789,2]
[334613189,1723347038664,-500.0,0.00013789,2]
[334613190,1723347038673,-500.0,0.00013789,2]
[334613191,1723347038683,-500.0,0.00013789,2]
[334613192,1723347038693,-410.8551584,0.00013789,2]
[334613193,1723347038703,-500.0,0.00013789,2]
[334613194,1723347038712,-500.0,0.00013789,2]
[334613195,1723347038722,-500.0,0.00013789,2]
[334613196,1723347038731,-500.0,0.00013789,2]
[334613197,1723347038740,-500.0,0.00013789,2]
[334613198,1723347038750,-500.0,0.00013789,2]
[334613199,1723347038762,-500.0,0.00013789,2]
[334613200,1723347038771,-500.0,0.00013789,2]
[334613201,1723347038780,-500.0,0.00013789,2]
[334613202,1723347038790,-500.0,0.00013789,2]
[334613203,1723347038799,-500.0,0.00013789,2]
[334613204,1723347038809,-500.0,0.00013789,2]
[334613205,1723347038818,-83.53799573,0.00013789,2]
[334613206,1723347038832,-416.46200427,0.00013789,2]
[334613207,1723347038841,-500.0,0.00013789,2]
[334613208,1723347038851,-585.84402525,0.00013789,2]
[334613209,1723347038861,-500.0,0.00013789,2]
[334613210,1723347038870,-500.0,0.00013789,2]
[334613212,1723347038880,-500.0,0.00013789,2]
[334613213,1723347038889,-500.0,0.00013789,2]
[334613214,1723347038899,-328.4913382,0.00013789,2]
[334613215,1723347038910,-265.41044069,0.00015369,2]
[334613216,1723347038920,-3446.95219159,0.0001617,3]
[334613217,1723347038931,-63566.30228419,0.0001617,3]
[334613218,1723347038942,-212.3991798,0.0001617,2]
[334613219,1723347038953,-1010.1702444,0.00016179,2]
[334613220,1723347038964,-109834.09337403,0.0001618,2]
[334613221,1723347038975,-269.1559348,0.0001618,2]
[334613222,1723347038993,-1379.86572107,0.0001618,2]
[334613342,1723347040388,-528.72304049,0.0001618,2]
[334613344,1723347040400,-301.02433591,0.0001618,2]
[334613346,1723347040418,-477.458,0.0001618,2]
[334613349,1723347040430,-729.29422708,0.0001618,2]
[334613351,1723347040443,-530.00361489,0.0001618,2]
[334613354,1723347040457,-1228.213641,0.0001618,2]
[334613356,1723347040468,-1171.7149608,0.0001618,2]
[334613358,1723347040479,-12294.49231857,0.0001618,2]
[334613450,1723347041380,-330.1645643,0.00012924,2]
[334613452,1723347041390,-2.49024849,0.0001618,2]
[334613697,1723347043457,-155.0,0.00011161,2]
[334613700,1723347043466,-407.83277667,0.00011741,2]
[334613703,1723347043476,-440.04082171,0.00012995,2]
[334613706,1723347043485,-3081.88485462,0.00013398,2]
[334613709,1723347043495,-3055.8585295,0.0001618,2]
[334614038,1723347046585,-206.74995029,0.00013199,2]
[334614040,1723347046595,-129.22568971,0.00014999,2]
[334614042,1723347046606,-184.46935091,0.00014999,2]
[334614044,1723347046615,-1310.62843094,0.0001618,2]
[334614075,1723347046950,-348.36874438,0.0001618,2]
[334614076,1723347046963,-301.6206,0.0001618,2]
[334614077,1723347046975,-277.39315145,0.0001618,2]
[334614078,1723347046988,-368.655,0.0001618,2]
[334614350,1723348232188,-150.0,0.00011068,2]
[334614351,1723348232201,-150.0,0.00011104,2]
[334614352,1723348232212,-250.0,0.00011104,2]
[334614353,1723348232258,-50.0,0.00011104,2]
[334614354,1723348232268,-284.50747262,0.00011105,2]
[334614355,1723348232281,-335.92939992,0.00011105,2]
[334614356,1723348232292,-348.89010204,0.00011105,2]
[334614357,1723348232304,-1205.83906467,0.00011105,2]
[334614359,1723348232335,-2619.0800759,0.00011105,2]
[334614360,1723348232345,-270.88799014,0.00011105,2]
[334614361,1723348232358,-1135.09739697,0.00011105,2]
[334614362,1723348232368,-362.3180898,0.00011105,2]
[334614363,1723348232380,-2010.04536673,0.00011105,2]
[334614364,1723348232390,-157.74214323,0.00011105,2]
[334614365,1723348232400,-377.4296066,0.00011105,2]
[334614366,1723348232409,-2111.63219542,0.00011105,2]
[334614367,1723348232419,-13.73209169,0.00011105,2]
[334614368,1723348232432,-368.80599242,0.00011105,2]
[334614369,1723348232443,-786.74303853,0.00011105,2]
[334614370,1723348232454,-522.58091288,0.00011105,2]
[334614371,1723348232489,-399.12662878,0.00011105,2]
[334614373,1723348232500,-350.0,0.00011105,2]
[334614375,1723348232512,-327.51143891,0.00011105,2]
[334614377,1723348232523,-165.49338695,0.00011105,2]
[334614379,1723348232533,-649.80168782,0.00011105,2]
[334614381,1723348232543,-653.58174017,0.00011105,2]
[334614383,1723348232552,-181.0811491,0.00011105,2]
[334614385,1723348232561,-246.94115681,0.00011105,2]
[334614387,1723348232571,-779.76666841,0.00011105,2]
[334614389,1723348232580,-341.50100244,0.00011105,2]
[334614396,1723348238361,-665.53234469,0.00011105,2]
[334614397,1723348238372,-347.66347305,0.00011105,2]
[334614398,1723348238386,-250.82722553,0.00011105,2]
[334614399,1723348238395,-357.41882144,0.00011105,2]
[334614400,1723348238406,-892.62032859,0.00011105,2]
[334614401,1723348238417,-216.50148569,0.00011105,2]
[334614402,1723348238427,-686.9571417,0.00011105,2]
[334614403,1723348238437,-309.26722249,0.00011105,2]
[334614404,1723348238448,-171.58540644,0.00011105,2]
[334614405,1723348238624,-25.03873141,0.00011105,2]
[334614406,1723348238636,-479.31269069,0.00011105,2]
[334614407,1723348238647,-42.89687979,0.00011105,2]
[334614408,1723348238661,-422.17977761,0.00011105,2]
[334614409,1723348238672,-652.39181994,0.00011105,2]
[334614410,1723348238682,-164.38725196,0.00011105,2]
[334614411,1723348238691,-30.50082822,0.00011105,2]
[334614412,1723348238703,-175.41866908,0.00011105,2]
[334614413,1723348238712,-234.98715181,0.00011105,2]
[334614414,1723348238721,-243.04993487,0.00011105,2]
[334614415,1723348238734,-12.12158231,0.00011105,2]
[334614416,1723348238743,-476.8972795,0.00011105,2]
[334614417,1723348238753,-211.04152423,0.00011105,2]
[334614418,1723348238762,-437.91,0.00011773,2]
[334614419,1723348238772,-7273.9068,0.00012021,2]
[334614420,1723348238783,-1445.11,0.00012021,2]
[334614421,1723348238794,-420.0,0.00012201,2]
[334614422,1723348238805,-2145.72746528,0.00012581,2]
[334614423,1723348238816,-487.63,0.00013406,2]
[334614424,1723348238827,-587.0,0.00013406,2]
[334614425,1723348238837,-872.0,0.00013544,2]
[334614426,1723348238848,-150.99,0.00013544,2]
[334614427,1723348238857,-2540.88,0.00013564,2]
[334614428,1723348238867,-3794.15,0.00013579,2]
[334614429,1723348238876,-647.87,0.00013595,2]
[334614430,1723348238887,-4581.85747888,0.00013595,2]
[334614431,1723348238898,-23900.0,0.00013605,2]
[334614432,1723348238911,-4540.49,0.00013605,2]
[334614433,1723348238920,-924.88,0.00013638,2]
[334614435,1723348238929,-2300.63,0.00013638,2]
[334614437,1723348238939,-176.24,0.0001366,2]
[334614439,1723348238948,-1906.98,0.00013673,2]
[334614441,1723348238958,-1287.03,0.00013687,2]
[334614442,1723348238968,-200.0,0.00013699,2]
[334614444,1723348238977,-2751.0,0.00013699,2]
[334614446,1723348238987,-200.0,0.00013739,2]
[334614449,1723348238997,-250.0,0.00013751,2]
[334614451,1723348239007,-250.0,0.00013766,2]
[334614452,1723348239016,-4136.10394359,0.00013807,2]
[334614454,1723348239025,-500.0,0.00013824,2]
[334614456,1723348239035,-172.18,0.0001396,2]
[334614458,1723348239044,-152.98,0.00013973,2]
[334614460,1723348239053,-584.04,0.00013973,2]
[334614462,1723348239063,-160.0,0.00013994,2]
[334614464,1723348239072,-155.0,0.00013999,2]
[334614466,1723348239081,-155.0,0.00013999,2]
[334614468,1723348239091,-437.91,0.00014037,2]
[334614471,1723348239101,-962.3578253,0.00014086,2]
[334614473,1723348239110,-270.55460344,0.00014086,2]
[334614475,1723348239120,-297.4607519,0.00014086,2]
[334614477,1723348239129,-293.56,0.00014175,2]
[334614479,1723348239139,-432.43627128,0.00014283,2]
[334614481,1723348239148,-432.43627128,0.00014283,2]
[334614483,1723348239159,-236.3219006,0.0001443,2]
[334614485,1723348239169,-823.0,0.0001473,2]
[334614486,1723348239178,-155.0,0.00015,2]
[334614488,1723348239187,-155.73849284,0.00015,2]
[334614491,1723348239199,-1002.32,0.00015,2]
[334614493,1723348239208,-300.0,0.00015068,2]
[334614495,1723348239217,-872.0,0.00015237,2]
[334614497,1723348239226,-1925.0,0.00015583,2]
[334614499,1723348239236,-622.0,0.00015583,2]
[334614501,1723348239246,-1667.859,0.00015583,2]
[334614503,1723348239255,-1260.987,0.00015583,2]
[334614505,1723348239264,-816.638,0.00015583,2]
[334614507,1723348239274,-556.0,0.00015583,2]
[334614509,1723348239283,-185.493,0.00015583,2]
[334614510,1723348239293,-461.906,0.00015583,2]
[334614512,1723348239302,-151.62,0.00015583,2]
[334614514,1723348239312,-552.387,0.00015583,2]
[334614516,1723348239322,-1894.0,0.00015583,2]
[334614518,1723348239332,-302.384,0.00015583,2]
[334614520,1723348239342,-1247.005,0.00015583,2]
[334614522,1723348239351,-3295.523,0.00015583,2]
[334614524,1723348239361,-5841.0,0.00015583,2]
[334614525,1723348239371,-5163.736,0.00015583,2]
[334614527,1723348239381,-1672.0,0.00015583,2]
[334614529,1723348239391,-314.527,0.00015583,2]
[334614531,1723348239402,-21754.0,0.00015583,2]
[334614533,1723348239412,-1207.063,0.00015583,2]
[334614535,1723348239422,-4380.33719248,0.000156,2]
[334614537,1723348239432,-600.0,0.000157,5]
[334614539,1723348239441,-1300.0,0.000158,5]
[334614541,1723348239451,-167.0,0.00015831,2]
[334614544,1723348239461,-16971.1331,0.0001588,2]
[334614545,1723348239470,-166.0053,0.0001588,2]
[334614547,1723348239480,-195.6335,0.0001588,2]
[334614549,1723348239490,-4484.8785,0.0001588,2]
[334614551,1723348239499,-176.044,0.0001588,2]
[334614553,1723348239509,-1000.0,0.0001588,2]
[334614555,1723348239519,-2500.0,0.0001588,2]
[334614557,1723348239529,-2000.0,0.000159,5]
[334614559,1723348239538,-293.56,0.00015947,2]
[334614561,1723348239548,-1415.3231,0.00015959,2]
[334614563,1723348239557,-326.81458476,0.0001597,2]
[334614565,1723348239566,-3764.2521,0.0001598,2]
[334614567,1723348239577,-353.0442,0.0001598,2]
[334614569,1723348239586,-30098.4525,0.0001598,2]
[334614571,1723348239597,-820.5197,0.0001598,2]
[334614573,1723348239607,-795.04095344,0.0001598,2]
[334614575,1723348239617,-166.31999249,0.0001598,2]
[334614577,1723348239626,-7500.0,0.0001598,2]
[334614579,1723348239636,-413.94147402,0.0001598,2]
[334614581,1723348239646,-1641.49540261,0.0001598,2]
[334614583,1723348239659,-420.30226764,0.00015981,2]
[334614585,1723348239670,-150.0,0.00016018,2]
[334614587,1723348239679,-5312.21075726,0.00016067,2]
[334614589,1723348239689,-500.0,0.00016069,2]
[334614591,1723348239699,-454.23215371,0.00016069,2]
[334614593,1723348239709,-441.94200497,0.00016069,2]
[334614595,1723348239719,-500.0,0.00016069,2]
[334614597,1723348239729,-500.0,0.00016069,2]
[334614599,1723348239740,-500.0,0.00016069,2]
[334614601,1723348239750,-500.0,0.00016069,2]
[334614603,1723348239761,-500.0,0.00016069,2]
[334614605,1723348239771,-500.0,0.00016069,2]
[334614607,1723348239780,-630.512392,0.0001607,2]
[334614609,1723348239790,-630.512392,0.0001607,2]
[334614611,1723348239799,-630.512392,0.0001607,2]
[334614613,1723348239808,-630.512392,0.0001607,2]
[334614615,1723348239818,-348070.803459,0.0001607,3]
[334614617,1723348239829,-215008.211434,0.0001607,3]
[334614619,1723348239839,-151.0,0.0001607,2]
[334614621,1723348239849,-151.0,0.0001607,2]
[334614623,1723348239860,-277287.3012,0.0001608,2]
[334614625,1723348239870,-1287.4901,0.0001608,2]
[334614627,1723348239880,-39151.8471,0.0001608,2]
[334614629,1723348239890,-14155.8675,0.0001608,2]
[334614631,1723348239900,-100000.0,0.0001608,2]
[334614633,1723348239910,-463.0856,0.0001608,2]
[334614634,1723348239920,-245000.0,0.0001608,2]
[334614635,1723348239930,-1000.0,0.0001608,2]
[334614636,1723348239940,-500.0,0.0001608,2]
[334614637,1723348239950,-2996.4372,0.0001608,2]
[334614638,1723348239959,-16686.3801,0.0001608,2]
[334614639,1723348239969,-630.512392,0.0001608,2]
[334614640,1723348239978,-630.512392,0.0001608,2]
[334614641,1723348239988,-630.512392,0.0001608,2]
[334614642,1723348239997,-630.512392,0.0001608,2]
[334614643,1723348240006,-630.512392,0.0001608,2]
[334614644,1723348240016,-630.512392,0.0001608,2]
[334614646,1723348240026,-151.0,0.0001608,2]
[334614648,1723348240035,-151.0,0.0001608,2]
[334614649,1723348240045,-151.0,0.0001608,2]
[334614650,1723348240055,-212.3991798,0.0001608,2]
[334614651,1723348240064,-16574.8001647,0.0001609,3]
[334614652,1723348240074,-1002.32,0.000161,2]
[334614653,1723348240083,-14333.8807623,0.0001615,3]
[334614654,1723348240093,-630.512392,0.0001616,2]
[334614655,1723348240102,-630.512392,0.0001616,2]
[334614656,1723348240112,-297.984001,0.00016167,2]
[334614657,1723348240122,-16574.8001647,0.00016167,3]
[334614658,1723348240131,-33149.6003294,0.0001617,3]
[334614659,1723348240141,-143338.807623,0.0001617,3]
[334614660,1723348240152,-5312.21075726,0.00016171,2]
[334614661,1723348240162,-4782.417551,0.00016174,2]
[334614662,1723348240171,-10294.557709,0.00016174,2]
[334614663,1723348240180,-2953.9477494,0.00016179,2]
[334614664,1723348240190,-150.41548607,0.00016179,2]
[334614665,1723348240201,-23971.21846784,0.0001618,2]
[334614666,1723348240210,-403194.46949357,0.0001618,2]
[334614667,1723348240220,-1773.56941378,0.0001618,2]
[334614669,1723348240229,-1031.8481688,0.0001618,2]
[334614671,1723348240238,-201.46875763,0.0001618,2]
[334614673,1723348240248,-50887.98788372,0.0001618,2]
[334614676,1723348240257,-340.97583371,0.0001618,4]
[334614679,1723348240266,-1794.21256,0.0001618,2]
[334614682,1723348240275,-630.512392,0.0001618,2]
[334614685,1723348240285,-630.512392,0.0001618,2]
[334614688,1723348240294,-10445.2433786,0.00016185,2]
[334614691,1723348240304,-1152.0,0.00016185,2]
[334614694,1723348240314,-54522.5773819,0.00016196,2]
[334614696,1723348240323,-630.512392,0.00016196,2]
[334614699,1723348240332,-630.512392,0.00016196,2]
[334614702,1723348240341,-437.91,0.00016301,2]
[334614704,1723348240354,-160.0,0.00016326,2]
[334614706,1723348240363,-5000.0,0.00016424,2]
[334614708,1723348240372,-210.99013923,0.00016425,2]
[334614710,1723348240382,-300.0,0.00016438,2]
[334614712,1723348240391,-379.0,0.00016493,2]
[334614714,1723348240400,-155.33649166,0.000165,2]
[334614716,1723348240416,-150.0,0.00016577,2]
[334614718,1723348240425,-150.0,0.00016578,2]
[334614720,1723348240434,-150.0,0.0001658,2]
[334614722,1723348240443,-150.0,0.00016581,2]
[334614724,1723348240453,-150.0,0.00016583,2]
[334614726,1723348240462,-150.0,0.00016584,2]
[334614728,1723348240475,-150.0,0.00016585,2]
[334614730,1723348240484,-150.0,0.00016587,2]
[334614732,1723348240494,-150.0,0.00016589,2]
[334614734,1723348240503,-150.0,0.00016593,2]
[334614736,1723348240513,-150.0,0.00016595,2]
[334614738,1723348240522,-1500.0,0.00016599,2]
[334614740,1723348240531,-150.0,0.00016606,2]
[334614742,1723348240541,-150.0,0.0001661,2]
[334614744,1723348240550,-1764.09435652,0.0001661,2]
[334614745,1723348240559,-150.0,0.00016611,2]
[334614747,1723348240569,-150.0,0.00016612,2]
[334614749,1723348240579,-1500.0,0.00016612,2]
[334614751,1723348240588,-150.70724886,0.00016614,2]
[334614753,1723348240598,-150.0,0.00016614,2]
[334614755,1723348240607,-150.0,0.00016614,2]
[334614757,1723348240617,-150.0,0.00016615,2]
[334614759,1723348240626,-150.0,0.00016616,2]
[334614761,1723348240636,-150.0,0.00016617,2]
[334614762,1723348240645,-150.0,0.00016617,2]
[334614764,1723348240656,-150.0,0.00016617,2]
[334614766,1723348240667,-150.0,0.00016619,2]
[334614768,1723348240677,-150.0,0.00016621,2]
[334614770,1723348240686,-150.0,0.00016621,2]
[334614772,1723348240697,-150.0,0.00016626,2]
[334614774,1723348240707,-150.0,0.0001663,2]
[334614776,1723348240717,-150.0,0.00016631,2]
[334614778,1723348240727,-150.0,0.00016632,2]
[334614780,1723348240736,-4380.33719239,0.00016633,2]
[334614781,1723348240746,-150.0,0.00016638,2]
[334614783,1723348240757,-150.0,0.00016638,2]
[334614785,1723348240766,-150.0,0.0001664,2]
[334614787,1723348240775,-150.0,0.00016641,2]
[334614789,1723348240785,-150.0,0.00016646,2]
[334614791,1723348240795,-150.0,0.00016646,2]
[334614793,1723348240804,-1500.0,0.00016649,2]
[334614795,1723348240814,-150.0,0.00016653,2]
[334614797,1723348240823,-150.0,0.00016655,2]
[334614799,1723348240833,-150.0,0.00016657,2]
[334614800,1723348240842,-150.0,0.00016659,2]
[334614802,1723348240851,-150.0,0.0001666,2]
[334614804,1723348240861,-150.0,0.00016668,2]
[334614806,1723348240870,-150.0,0.0001667,2]
[334614808,1723348240879,-150.0,0.00016683,2]
[334614810,1723348240889,-150.0,0.00016684,2]
[334614812,1723348240898,-150.0,0.00016685,2]
[334614814,1723348240908,-1500.0,0.00016685,2]
[334614815,1723348240917,-150.0,0.00016686,2]
[334614817,1723348240927,-150.0,0.00016687,2]
[334614819,1723348240936,-150.0,0.00016691,2]
[334614821,1723348240946,-150.0,0.00016692,2]
[334614823,1723348240955,-630.512392,0.00016695,2]
[334614825,1723348240964,-630.512392,0.00016695,2]
[334614827,1723348240973,-150.0,0.00016698,2]
[334614829,1723348240982,-1205.0,0.000167,2]
[334614831,1723348240991,-167.0,0.00016702,2]
[334614833,1723348241001,-150.0,0.00016703,2]
[334614835,1723348241010,-150.0,0.00016703,2]
[334614838,1723348241019,-150.0,0.00016709,2]
[334614840,1723348241028,-150.0,0.00016712,2]
[334614843,1723348241037,-150.0,0.00016717,2]
[334614845,1723348241046,-150.0,0.00016717,2]
[334614847,1723348241055,-150.0,0.00016718,2]
[334614849,1723348241064,-150.0,0.00016718,2]
[334614851,1723348241073,-150.0,0.00016719,2]
[334614853,1723348241082,-1500.0,0.00016719,2]
[334614855,1723348241091,-150.0,0.00016721,2]
[334614857,1723348241101,-424.90518696,0.00016721,2]
[334614859,1723348241110,-150.0,0.00016726,2]
[334614861,1723348241119,-150.0,0.00016727,2]
[334614863,1723348241128,-150.0,0.00016732,2]
[334614865,1723348241136,-150.0,0.00016732,2]
[334614867,1723348241146,-150.0,0.00016736,2]
[334614869,1723348241155,-150.0,0.00016737,2]
[334614871,1723348241164,-150.0,0.00016741,2]
[334614873,1723348241174,-150.0,0.00016742,2]
[334614875,1723348241183,-150.0,0.00016743,2]
[334614877,1723348241192,-150.0,0.00016745,2]
[334614879,1723348241202,-150.0,0.00016746,2]
[334614881,1723348241211,-150.0,0.00016749,2]